bitfinex-derivatives/quotes_SOLF0:USTF0_20250328
["timestamp","ask_amount","ask_price","bid_price","bid_amount"]
[1743168059971,11.76589134,131.66,131.62,0.05784388]
[1743168059972,7.5996,131.64,131.62,0.05784388]
[1743168060372,7.5996,131.64,131.62,7.65824388]
[1743168060973,37.32762793,131.65,131.62,7.65824388]
[1743168061173,29.72862793,131.65,131.62,7.65824388]
[1743168061469,17.37389134,131.63,131.62,0.05784388]
[1743168061672,9.77399134,131.63,131.58,9.77399134]
[1743168061860,9.77399134,131.63,131.58,17.37649134]
[1743168062065,7.6008,131.62,131.58,17.37649134]
[1743168062261,9.77399134,131.63,131.58,9.77399134]
[1743168062674,7.6009,131.62,131.58,9.77399134]
[1743168062874,7.65161982,131.62,131.59,9.82616733]
[1743168063267,0.05071982,131.62,131.61,9.77399134]
[1743168063775,0.05071982,131.62,131.61,17.37499134]
[1743168064977,0.05071982,131.62,131.61,7.601]
[1743168070280,7.65121982,131.62,131.6,7.6013]
[1743168070479,0.05071982,131.62,131.6,7.6013]
[1743168070778,7.65121982,131.62,131.6,7.6013]
[1743168070979,0.05071982,131.62,131.61,7.601]
[1743168074879,0.05071982,131.62,131.6,7.6013]
[1743168075382,0.05071982,131.62,131.61,7.601]
[1743168076982,31.6719,131.66,131.63,7.5995]
[1743168077175,31.6719,131.66,131.6,15.27127548]
[1743168077473,7.5992,131.65,131.62,7.6001]
[1743168077678,7.5992,131.65,131.6,15.27127548]
[1743168077975,0.05479376,131.64,131.61,0.05060431]
[1743168078370,0.05479376,131.64,131.63,7.5997]
[1743168078679,0.05479376,131.64,131.61,0.05060431]
[1743168079279,0.05479376,131.64,131.63,7.5999]
[1743168079476,7.65409376,131.64,131.61,0.05060431]
[1743168079782,7.65409376,131.64,131.62,7.6002]
[1743168081281,29.66,131.63,131.61,4.31e-06]
[1743168081481,47.09047548,131.63,131.54,130.63572193]
[1743168081782,7.6018,131.6,131.54,130.63572193]
[1743168081979,29.66,131.64,131.57,15.27127548]
[1743168082579,0.05578116,131.62,131.59,0.05839112]
[1743168083487,0.05578116,131.62,131.61,7.601]
[1743168083789,0.05578116,131.62,131.59,0.05839112]
[1743168084384,7.65658116,131.62,131.59,7.66029112]
[1743168085689,7.6011,131.61,131.59,7.66029112]
[1743168087285,7.65658116,131.62,131.59,7.66029112]
[1743168087484,0.05578116,131.62,131.59,0.05839112]
[1743168087683,0.05578116,131.62,131.6,9.77879925]
[1743168088187,0.05578116,131.62,131.61,7.601]
[1743168090691,0.05578116,131.62,131.6,7.6013]
[1743168090897,0.05578116,131.62,131.59,0.05839112]
[1743168091392,7.6013,131.61,131.59,0.05839112]
[1743168091993,0.05578116,131.62,131.59,9.83719037]
[1743168092189,0.05578116,131.62,131.6,9.77879925]
[1743168092594,0.05578116,131.62,131.61,7.601]
[1743168092892,0.05578116,131.62,131.6,9.77879925]
[1743168093995,0.05578116,131.62,131.6,17.38019925]
[1743168094495,7.65638116,131.62,131.6,17.38019925]
[1743168095288,0.05578116,131.62,131.6,9.77879925]
[1743168095493,7.601,131.61,131.6,9.77879925]
[1743168096294,7.65658116,131.62,131.6,9.77879925]
[1743168097593,0.05578116,131.62,131.59,7.66029112]
[1743168098202,7.65668116,131.62,131.59,7.66029112]
[1743168098497,7.65668116,131.62,131.6,7.6016]
[1743168099493,4.56605448,131.61,131.6,7.6016]
[1743168100893,4.56658122,131.61,131.6,7.6016]
[1743168101798,7.65638116,131.62,131.6,7.6016]
[1743168102506,0.05578116,131.62,131.61,7.601]
[1743168102897,0.05578116,131.62,131.61,17.37979925]
[1743168104402,0.05578116,131.62,131.61,7.601]
[1743168106200,0.05578116,131.62,131.59,9.83719037]
[1743168107004,0.05578116,131.62,131.6,7.6013]
[1743168107207,0.05578116,131.62,131.6,9.77879925]
[1743168107501,0.05578116,131.62,131.61,9.77879925]
[1743168107707,0.05578116,131.62,131.61,17.37979925]
[1743168109105,0.05578116,131.62,131.61,7.601]
[1743168109313,0.05578116,131.62,131.6,7.6012]
[1743168109604,0.05578116,131.62,131.59,39.47719037]
[1743168109799,0.05578116,131.62,131.61,9.77879925]
[1743168110004,17.37679925,131.67,131.61,9.77879925]
[1743168110209,17.37679925,131.67,131.62,9.77879925]
[1743168110509,7.5984,131.66,131.61,9.77879925]
[1743168110707,17.37719925,131.66,131.61,9.77879925]
[1743168110909,7.5984,131.66,131.64,7.5992]
[1743168111103,0.04976992,131.65,131.64,7.5992]
[1743168111406,51.08956399,131.71,131.64,9.77879925]
[1743168111604,39.41879925,131.71,131.67,7.5973]
[1743168111804,9.77879925,131.72,131.67,9.77879925]
[1743168112107,39.41879925,131.72,131.67,9.77879925]
[1743168112508,0.05539279,131.71,131.68,0.05415607]
[1743168112911,7.596,131.7,131.68,0.05415607]
[1743168113312,0.05539279,131.71,131.68,7.65115607]
[1743168113513,7.65099279,131.71,131.68,7.65115607]
[1743168114208,0.05539279,131.71,131.69,17.37519925]
[1743168114409,0.05539279,131.71,131.69,9.77879925]
[1743168114714,0.05539279,131.71,131.68,9.83295532]
[1743168115313,0.05539279,131.71,131.69,7.5964]
[1743168116909,0.05539279,131.71,131.7,7.5959]
[1743168117105,0.05539279,131.71,131.68,9.83295532]
[1743168117509,0.05539279,131.71,131.69,7.5961]
[1743168119215,7.65069279,131.71,131.69,7.5961]
[1743168119616,0.05539279,131.71,131.69,7.5961]
[1743168120213,0.05539279,131.71,131.7,7.5959]
[1743168120520,0.05539279,131.71,131.7,17.37469925]
[1743168121320,29.62,131.76,131.73,7.5941]
[1743168121321,17.37169925,131.76,131.73,7.5941]
[1743168121521,7.5929,131.76,131.72,9.77879925]
[1743168121919,7.5929,131.76,131.73,7.5938]
[1743168122119,7.5929,131.76,131.72,9.77879925]
[1743168122419,7.61858073,131.75,131.73,7.64524942]
[1743168122625,0.02558073,131.75,131.73,0.05144942]
[1743168122921,0.02558073,131.75,131.73,7.64524942]
[1743168123325,0.02558073,131.75,131.73,0.05144942]
[1743168123520,0.02558073,131.75,131.74,7.5935]
[1743168124822,0.02558073,131.75,131.73,7.64544942]
[1743168125222,0.02558073,131.75,131.74,7.5935]
[1743168125423,0.02558073,131.75,131.73,0.05144942]
[1743168125824,0.02558073,131.75,131.73,9.83024867]
[1743168126331,0.02558073,131.75,131.73,0.05144942]
[1743168127532,7.61888073,131.75,131.73,0.05144942]
[1743168127834,7.61888073,131.75,131.73,9.83024867]
[1743168129131,7.5935,131.74,131.73,0.05144942]
[1743168130034,17.37229925,131.74,131.73,0.05144942]
[1743168130234,7.5959,131.7,131.68,9.77879925]
[1743168130437,9.77879925,131.72,131.67,9.77879925]
[1743168130623,7.5968,131.69,131.67,9.77879925]
[1743168130825,9.77879925,131.72,131.67,9.77879925]
[1743168131334,0.05517413,131.71,131.68,0.0542236]
[1743168131735,0.05517413,131.71,131.68,17.42992285]
[1743168131934,0.05517413,131.71,131.68,9.83302285]
[1743168132234,7.65047413,131.71,131.68,9.83302285]
[1743168132435,0.05517413,131.71,131.68,9.83302285]
[1743168133235,0.05517413,131.71,131.68,17.42992285]
[1743168134033,7.65047413,131.71,131.68,9.83302285]
[1743168134424,0.05517413,131.71,131.69,9.77879925]
[1743168135636,0.05517413,131.71,131.68,9.83302285]
[1743168135940,0.05517413,131.71,131.68,0.0542236]
[1743168136130,7.5963,131.7,131.68,0.0542236]
[1743168136836,7.5964,131.69,131.68,0.0542236]
[1743168137035,9.77879925,131.7,131.68,0.0542236]
[1743168137337,7.5964,131.69,131.68,0.0542236]
[1743168137640,39.43397338,131.71,131.68,0.0542236]
[1743168137936,7.5959,131.7,131.68,0.0542236]
[1743168139339,7.5964,131.69,131.68,0.0542236]
[1743168140938,9.77879925,131.69,131.63,9.77879925]
[1743168141138,9.77879925,131.68,131.65,7.5982]
[1743168141339,9.77879925,131.69,131.64,9.77879925]
[1743168141541,31.7397,131.71,131.67,9.77879925]
[1743168141834,1.9948,131.73,131.7,9.77879925]
[1743168142041,2.04530657,131.73,131.7,9.83407716]
[1743168142236,2.04530657,131.73,131.71,7.595]
[1743168142630,9.63980657,131.73,131.7,9.83407716]
[1743168142842,2.04530657,131.73,131.7,7.65087791]
[1743168143735,2.04530657,131.73,131.71,7.5952]
[1743168144639,9.63970657,131.73,131.71,7.5952]
[1743168144841,2.04530657,131.73,131.71,7.5952]
[1743168145940,9.63950657,131.73,131.71,7.5952]
[1743168146143,0.05050657,131.73,131.72,7.5947]
[1743168148446,0.05050657,131.73,131.71,7.5951]
[1743168148745,7.64490657,131.73,131.71,7.5951]
[1743168148945,0.05050657,131.73,131.7,17.42967716]
[1743168149443,7.64490657,131.73,131.7,9.83407716]
[1743168149646,0.05050657,131.73,131.7,9.83407716]
[1743168149846,0.05050657,131.73,131.71,9.77879925]
[1743168150147,0.05050657,131.73,131.72,7.5947]
[1743168152451,0.05050657,131.73,131.72,17.37349925]
[1743168164450,39.35879925,131.78,131.75,7.5926]
[1743168164852,9.77879925,131.78,131.75,7.5926]
[1743168165045,7.5921,131.77,131.75,7.5926]
[1743168165556,7.64708244,131.77,131.75,7.64763595]
[1743168166056,0.05498244,131.77,131.76,7.5924]
[1743168166258,0.05498244,131.77,131.75,9.8338352]
[1743168166446,0.05498244,131.77,131.75,0.05503595]
[1743168167058,0.05498244,131.77,131.75,7.64753595]
[1743168167864,7.64688244,131.77,131.75,7.64753595]
[1743168168255,7.64688244,131.77,131.75,0.05503595]
[1743168168558,0.05498244,131.77,131.76,7.5924]
[1743168169261,0.05498244,131.77,131.75,0.05503595]
[1743168170054,0.05498244,131.77,131.75,7.64763595]
[1743168170261,7.64708244,131.77,131.75,7.64763595]
[1743168170460,0.05498244,131.77,131.76,7.5924]
[1743168170852,11.80549925,131.81,131.76,17.37119925]
[1743168171056,11.80549925,131.81,131.78,7.5911]
[1743168171057,2.0267,131.81,131.78,7.5911]
[1743168171449,7.5904,131.8,131.78,7.5911]
[1743168171961,7.5904,131.8,131.77,17.37029925]
[1743168172259,7.5907,131.79,131.78,0.05754917]
[1743168172662,0.02576474,131.8,131.78,0.05754917]
[1743168172864,0.02576474,131.8,131.78,9.83634842]
[1743168173164,0.02576474,131.8,131.78,17.42734842]
[1743168174162,0.02576474,131.8,131.79,7.5907]
[1743168174360,7.5875,131.85,131.79,9.77879925]
[1743168174556,39.31879925,131.86,131.82,9.77879925]
[1743168174766,29.54,131.86,131.83,9.77879925]
[1743168175259,2.0757,131.87,131.83,9.77879925]
[1743168175462,2.0757,131.87,131.84,9.77879925]
[1743168175660,2.0757,131.87,131.83,9.82990741]
[1743168176058,9.77879925,131.86,131.83,0.05110816]
[1743168176660,7.5878,131.84,131.83,0.05110816]
[1743168177868,17.36659925,131.84,131.83,0.05110816]
[1743168178366,17.36629925,131.85,131.83,0.05110816]
[1743168178966,7.5878,131.84,131.83,0.05110816]
[1743168179264,9.77879925,131.86,131.83,0.05110816]
[1743168180765,7.5878,131.84,131.83,0.05110816]
[1743168182467,17.36629925,131.85,131.83,0.05110816]
[1743168182670,9.77879925,131.86,131.83,0.05110816]
[1743168182860,9.77879925,131.85,131.83,0.05110816]
[1743168183176,7.5878,131.84,131.83,0.05110816]
[1743168183461,7.5875,131.85,131.83,0.05110816]
[1743168183666,2.0757,131.87,131.83,9.82990741]
[1743168184067,2.0757,131.87,131.84,7.5875]
[1743168184368,7.5867,131.86,131.83,9.82990741]
[1743168184568,11.85449925,131.87,131.83,7.63910816]
[1743168184767,11.85449925,131.87,131.83,9.82990741]
[1743168184768,2.0757,131.87,131.83,9.82990741]
[1743168184970,11.85449925,131.87,131.83,9.82990741]
[1743168185167,11.85449925,131.87,131.83,7.63900816]
[1743168185572,9.77879925,131.86,131.83,0.05110816]
[1743168185774,7.5878,131.84,131.83,0.05110816]
[1743168186266,9.77879925,131.86,131.83,0.05110816]
[1743168187166,7.5878,131.84,131.83,0.05110816]
[1743168187767,7.5875,131.85,131.83,0.05110816]
[1743168188170,11.85449925,131.87,131.83,0.05110816]
[1743168189164,17.36549925,131.86,131.83,7.63920816]
[1743168189670,7.5873,131.85,131.83,7.63920816]
[1743168189970,9.77879925,131.86,131.83,7.63920816]
[1743168190171,9.77879925,131.86,131.84,7.5877]
[1743168190470,9.77879925,131.86,131.83,0.05110816]
[1743168190769,9.77879925,131.86,131.83,7.63940816]
[1743168190965,7.5875,131.85,131.83,7.63940816]
[1743168191166,9.77879925,131.86,131.83,7.63940816]
[1743168191573,17.36579925,131.86,131.83,7.63940816]
[1743168192073,17.36579925,131.86,131.84,7.5876]
[1743168192467,7.587,131.86,131.84,7.5876]
[1743168192771,17.36519925,131.87,131.84,7.5876]
[1743168193168,7.587,131.86,131.84,7.5876]
[1743168193368,9.77879925,131.87,131.83,17.41800741]
[1743168193669,7.5878,131.84,131.83,0.05110816]
[1743168194271,17.36659925,131.84,131.83,0.05110816]
[1743168196374,7.5878,131.84,131.83,0.05110816]
[1743168198374,17.36659925,131.84,131.83,0.05110816]
[1743168200173,17.36659925,131.84,131.83,8.16e-06]
[1743168200875,7.5909,131.79,131.74,1.9678]
[1743168201076,7.5909,131.79,131.75,9.77879925]
[1743168201275,39.27879925,131.8,131.75,9.77879925]
[1743168201473,7.5907,131.79,131.75,9.77879925]
[1743168201673,39.27879925,131.8,131.76,9.77879925]
[1743168202172,0.05110816,131.79,131.77,7.6435326]
[1743168202377,0.05110816,131.79,131.77,0.0518326]
[1743168202678,7.64210816,131.79,131.77,0.0518326]
[1743168202877,9.82990741,131.79,131.77,0.0518326]
[1743168203178,7.5912,131.78,131.77,0.0518326]
[1743168205666,7.64200816,131.79,131.77,0.0518326]
[1743168205870,7.64200816,131.79,131.77,7.6436326]
[1743168206076,0.05110816,131.79,131.77,0.0518326]
[1743168206278,7.5912,131.78,131.77,0.0518326]
[1743168206478,17.36999925,131.78,131.77,0.0518326]
[1743168209385,17.36999925,131.78,131.77,3.26e-05]
[1743168216377,19.44419925,131.78,131.77,3.26e-05]
[1743168218579,7.5943,131.73,131.71,7.595]
[1743168218787,9.77879925,131.74,131.7,17.37429925]
[1743168218986,39.25879925,131.75,131.7,9.77879925]
[1743168219184,7.5938,131.74,131.7,9.77879925]
[1743168219385,7.5938,131.74,131.71,7.5948]
[1743168219587,7.5938,131.74,131.7,9.77879925]
[1743168219786,7.64374471,131.74,131.71,0.05268748]
[1743168220084,7.64374471,131.74,131.71,7.64738748]
[1743168220484,7.64374471,131.74,131.71,0.05268748]
[1743168220685,0.04994471,131.74,131.71,0.05268748]
[1743168221087,17.37349925,131.72,131.71,0.05268748]
[1743168221289,46.85349925,131.72,131.71,0.05268748]
[1743168222390,39.25879925,131.72,131.67,17.37599925]
[1743168222590,9.77879925,131.71,131.67,7.5972]
[1743168222783,9.77879925,131.7,131.66,7.5979]
[1743168222980,9.77879925,131.69,131.64,9.77879925]
[1743168223193,9.77879925,131.68,131.64,9.77879925]
[1743168223488,7.64557019,131.67,131.65,0.05175886]
[1743168223697,17.42436944,131.67,131.65,0.05175886]
[1743168223895,7.64557019,131.67,131.65,0.05175886]
[1743168224089,0.04797019,131.67,131.65,7.65045886]
[1743168228603,0.04797019,131.67,131.66,7.5982]
[1743168228802,0.04797019,131.67,131.65,0.05175886]
[1743168229202,0.04797019,131.67,131.65,7.64995886]
[1743168229707,0.04797019,131.67,131.66,7.5982]
[1743168229901,7.64557019,131.67,131.65,0.05175886]
[1743168230205,0.04797019,131.67,131.65,0.05175886]
[1743168230504,0.04797019,131.67,131.66,7.5982]
[1743168230704,0.04797019,131.67,131.65,0.05175886]
[1743168230999,0.04797019,131.67,131.65,7.65015886]
[1743168231399,0.04797019,131.67,131.65,0.05175886]
[1743168232005,0.04797019,131.67,131.65,7.65015886]
[1743168232806,0.04797019,131.67,131.65,0.05175886]
[1743168233104,9.82676944,131.67,131.65,0.05175886]
[1743168233803,39.27879925,131.66,131.61,9.77879925]
[1743168234004,9.77879925,131.65,131.6,9.77879925]
[1743168234209,9.77879925,131.64,131.6,9.77879925]
[1743168234405,9.77879925,131.64,131.59,9.77879925]
[1743168234706,7.6002,131.63,131.59,9.77879925]
[1743168235106,0.05513995,131.62,131.6,0.05788683]
[1743168235302,0.05513995,131.62,131.6,7.65908683]
[1743168235507,0.05513995,131.62,131.6,0.05788683]
[1743168236709,0.05513995,131.62,131.6,7.65928683]
[1743168236906,9.8339392,131.62,131.6,0.05788683]
[1743168237114,0.05513995,131.62,131.6,0.05788683]
[1743168237308,7.65593995,131.62,131.6,0.05788683]
[1743168238112,0.05513995,131.62,131.6,7.65948683]
[1743168239511,7.65583995,131.62,131.6,7.65948683]
[1743168239806,7.65583995,131.62,131.6,0.05788683]
[1743168240014,9.8339392,131.62,131.6,0.05788683]
[1743168240208,17.37979925,131.61,131.6,0.05788683]
[1743168240406,9.77879925,131.6,131.56,17.38229925]
[1743168240605,39.27879925,131.6,131.56,17.38229925]
[1743168240801,7.6026,131.59,131.56,17.38229925]
[1743168241011,9.77879925,131.59,131.54,9.77879925]
[1743168241209,7.6032,131.58,131.54,9.77879925]
[1743168241411,7.65142838,131.58,131.55,0.05678312]
[1743168241606,7.65142838,131.58,131.55,7.66088312]
[1743168241802,7.65142838,131.58,131.55,0.05678312]
[1743168242412,7.6034,131.57,131.55,7.66098312]
[1743168242915,0.04822838,131.58,131.55,7.66098312]
[1743168243310,7.6034,131.57,131.55,7.66098312]
[1743168243517,9.77879925,131.56,131.55,0.05678312]
[1743168243912,17.38269925,131.56,131.55,0.05678312]
[1743168244213,9.77879925,131.56,131.51,7.6065]
[1743168244408,29.48,131.57,131.5,9.77879925]
[1743168244409,9.77879925,131.55,131.5,9.77879925]
[1743168244717,9.77879925,131.55,131.52,7.6061]
[1743168244921,9.77879925,131.55,131.51,9.77879925]
[1743168245112,7.6056,131.54,131.51,17.38529925]
[1743168245307,7.66391711,131.54,131.52,0.05493753]
[1743168245515,9.77879925,131.53,131.52,0.05493753]
[1743168246215,17.38449925,131.53,131.52,0.05493753]
[1743168247923,29.55831711,131.54,131.52,0.05493753]
[1743168248723,29.55831711,131.54,131.52,7.66083753]
[1743168248924,29.55831711,131.54,131.52,0.05493753]
[1743168249124,37.16351711,131.54,131.52,0.05493753]
[1743168249320,46.94231636,131.54,131.52,0.05493753]
[1743168251928,9.77879925,131.53,131.52,0.05493753]
[1743168252323,17.38449925,131.53,131.52,0.05493753]
[1743168254130,7.607,131.51,131.47,41.41729925]
[1743168254325,17.38579925,131.51,131.47,41.41729925]
[1743168254628,9.77879925,131.52,131.5,7.6074]
[1743168255329,0.05748934,131.52,131.51,17.38559925]
[1743168255530,0.05748934,131.52,131.51,7.6068]
[1743168255827,0.05748934,131.52,131.5,7.65767307]
[1743168256230,0.05748934,131.52,131.5,0.05047307]
[1743168256429,0.05748934,131.52,131.5,7.65777307]
[1743168258825,7.66378934,131.52,131.5,7.65777307]
[1743168260425,0.05748934,131.52,131.5,7.65777307]
[1743168260629,0.05748934,131.52,131.51,7.6068]
[1743168261329,0.05748934,131.52,131.51,17.38559925]
[1743168265928,17.38359925,131.55,131.51,9.77879925]
[1743168267035,0.05398022,131.54,131.53,7.6057]
[1743168267734,0.05398022,131.54,131.52,7.6061]
[1743168268738,9.83277947,131.54,131.51,7.6066]
[1743168269031,0.05398022,131.54,131.5,0.05047307]
[1743168269229,9.77879925,131.52,131.5,0.05047307]
[1743168269431,17.38539925,131.52,131.5,0.05047307]
[1743168270034,7.6068,131.51,131.5,0.05047307]
[1743168270426,17.38559925,131.51,131.5,0.05047307]
[1743168270626,9.77879925,131.51,131.44,9.77879925]
[1743168270832,9.77879925,131.48,131.45,7.6102]
[1743168271137,9.77879925,131.5,131.45,9.77879925]
[1743168271436,9.77879925,131.5,131.46,7.6094]
[1743168271838,7.66398303,131.49,131.47,0.05637047]
[1743168272134,0.05598303,131.49,131.47,7.66537047]
[1743168272338,9.83478228,131.49,131.47,0.05637047]
[1743168272739,17.44298228,131.49,131.47,0.05637047]
[1743168273642,7.6086,131.48,131.47,0.05637047]
[1743168274242,17.38739925,131.48,131.47,0.05637047]
[1743168274547,9.77879925,131.48,131.47,0.05637047]
[1743168274735,9.83478228,131.49,131.47,0.05637047]
[1743168275242,9.83478228,131.49,131.47,7.66547047]
[1743168275643,9.83478228,131.49,131.47,0.05637047]
[1743168275848,17.44298228,131.49,131.47,0.05637047]
[1743168276746,7.6086,131.48,131.47,0.05637047]
[1743168278151,17.44308228,131.49,131.47,0.05637047]
[1743168279549,7.6086,131.48,131.47,0.05637047]
[1743168279951,9.83478228,131.49,131.47,0.05637047]
[1743168280147,17.44308228,131.49,131.47,0.05637047]
[1743168280344,9.83478228,131.49,131.47,0.05637047]
[1743168280947,17.44308228,131.49,131.47,0.05637047]
[1743168282349,7.6086,131.48,131.47,0.05637047]
[1743168282654,17.38739925,131.48,131.47,0.05637047]
[1743168285546,7.6086,131.48,131.47,0.05637047]
[1743168286248,7.66428303,131.49,131.47,0.05637047]
[1743168287355,7.6086,131.48,131.47,0.05637047]
[1743168288057,7.66428303,131.49,131.47,0.05637047]
[1743168288457,7.6086,131.48,131.47,0.05637047]
[1743168289056,17.38739925,131.48,131.47,0.05637047]
[1743168289757,7.6098,131.46,131.44,7.6105]
[1743168290062,7.6098,131.46,131.43,7.6112]
[1743168290063,9.77879925,131.46,131.43,7.6112]
[1743168290652,9.77879925,131.46,131.42,9.77879925]
[1743168290653,9.77879925,131.44,131.41,7.6122]
[1743168290857,9.83341901,131.44,131.41,7.66190939]
[1743168291162,0.05461976,131.44,131.41,9.82850864]
[1743168291757,0.05461976,131.44,131.42,7.6118]
[1743168292354,0.05461976,131.44,131.42,9.77879925]
[1743168292556,0.05461976,131.44,131.41,0.04970939]
[1743168292755,0.05461976,131.44,131.42,9.77879925]
[1743168293156,0.05461976,131.44,131.42,17.39049925]
[1743168293662,0.05461976,131.44,131.42,7.6117]
[1743168294766,7.66561976,131.44,131.42,7.6117]
[1743168295164,0.05461976,131.44,131.42,7.6117]
[1743168296858,17.44471901,131.44,131.41,7.66200939]
[1743168297463,9.77879925,131.42,131.41,0.04970939]
[1743168298262,17.39079925,131.42,131.41,0.04970939]
[1743168298461,9.77879925,131.42,131.38,7.6141]
[1743168298660,17.39169925,131.41,131.38,7.6141]
[1743168299263,7.6132,131.4,131.37,7.6146]
[1743168299472,0.04986622,131.4,131.37,7.66313462]
[1743168299674,0.04986622,131.4,131.37,0.04853462]
[1743168299874,0.04986622,131.4,131.38,7.6141]
[1743168300172,0.04986622,131.4,131.37,0.04853462]
[1743168300375,9.77879925,131.38,131.37,0.04853462]
[1743168301166,17.39319925,131.38,131.37,0.04853462]
[1743168302185,7.6153,131.37,131.33,29.46]
[1743168302480,9.77879925,131.37,131.33,29.46]
[1743168302974,9.77879925,131.37,131.31,9.77879925]
[1743168303182,17.39409925,131.37,131.32,9.77879925]
[1743168303377,0.05531817,131.35,131.33,0.05026284]
[1743168303582,9.77879925,131.34,131.33,0.05026284]
[1743168306683,17.39549925,131.34,131.33,0.05026284]
[1743168308078,7.6178,131.33,131.28,39.23879925]
[1743168308383,9.77879925,131.33,131.29,7.6193]
[1743168308789,17.39629925,131.33,131.28,9.77879925]
[1743168308986,17.39629925,131.33,131.29,7.6192]
[1743168309286,0.05562102,131.32,131.3,0.04997423]
[1743168310383,0.05562102,131.32,131.3,7.66887423]
[1743168311281,0.05562102,131.32,131.31,17.39719925]
[1743168312684,1.9823,131.38,131.35,7.6157]
[1743168312985,1.9823,131.38,131.34,9.77879925]
[1743168313191,19.35489925,131.39,131.34,9.77879925]
[1743168313582,7.6145,131.38,131.35,7.6158]
[1743168313792,0.05770411,131.38,131.35,0.05649218]
[1743168314288,0.05770411,131.38,131.35,7.67229218]
[1743168314690,9.83650336,131.38,131.35,0.05649218]
[1743168314892,7.6149,131.37,131.35,0.05649218]
[1743168315090,0.05770411,131.38,131.35,0.05649218]
[1743168316397,0.05770411,131.38,131.35,7.67229218]
[1743168316586,7.67240411,131.38,131.35,7.67229218]
[1743168317589,7.615,131.37,131.35,7.67229218]
[1743168318083,7.615,131.37,131.35,0.05649218]
[1743168319093,7.6155,131.36,131.35,0.05649218]
[1743168319297,29.51770411,131.38,131.3,46.8832515]
[1743168319495,29.46,131.38,131.3,46.8832515]
[1743168320293,0.05620129,131.35,131.3,46.8832515]
[1743168320498,0.05620129,131.35,131.33,0.0539805]
[1743168320798,7.6167,131.34,131.33,0.0539805]
[1743168324099,7.67260129,131.35,131.33,0.0539805]
[1743168324500,0.05620129,131.35,131.33,0.0539805]
[1743168324802,7.67260129,131.35,131.33,0.0539805]
[1743168327004,0.05620129,131.35,131.33,7.6712805]
[1743168327900,7.67260129,131.35,131.33,0.0539805]
[1743168328205,0.05620129,131.35,131.33,0.0539805]
[1743168328400,7.6167,131.34,131.33,0.0539805]
[1743168331207,7.67260129,131.35,131.33,0.0539805]
[1743168331896,7.67260129,131.35,131.33,7.6711805]
[1743168332501,7.67260129,131.35,131.33,0.0539805]
[1743168333605,0.05620129,131.35,131.33,0.0539805]
[1743168334000,0.05620129,131.35,131.34,7.6167]
[1743168335104,0.05620129,131.35,131.34,17.43180562]
[1743168336502,0.05620129,131.35,131.33,17.48608612]
[1743168336703,0.05620129,131.35,131.33,7.6709805]
[1743168336997,0.05620129,131.35,131.33,0.0539805]
[1743168337201,0.05620129,131.35,131.33,9.86908612]
[1743168337606,0.05620129,131.35,131.34,7.6167]
[1743168337805,0.05620129,131.35,131.34,17.43180562]
[1743168341609,0.05620129,131.35,131.33,17.48598612]
[1743168342106,0.05620129,131.35,131.33,9.86908612]
[1743168342511,0.05620129,131.35,131.33,17.48598612]
[1743168343810,0.05620129,131.35,131.33,9.86908612]
[1743168344202,0.05620129,131.35,131.33,17.48608612]
[1743168344908,0.05620129,131.35,131.34,7.6167]
[1743168345410,0.05620129,131.35,131.33,17.48598612]
[1743168345714,0.05620129,131.35,131.33,0.0539805]
[1743168345914,9.81510562,131.34,131.27,84.64502978]
[1743168346102,7.6183,131.32,131.28,7.6198]
[1743168346301,9.81510562,131.31,131.27,84.64502978]
[1743168346501,7.6202,131.28,131.27,84.64502978]
[1743168346808,17.43530562,131.28,131.27,84.64502978]
[1743168347013,7.6202,131.28,131.27,84.64502978]
[1743168347515,17.43530562,131.28,131.27,84.64502978]
[1743168348513,7.6207,131.27,131.26,119.15774498]
[1743168348716,17.43580562,131.27,131.26,119.15774498]
[1743168348903,15.3697927,131.27,131.24,264.51571807]
[1743168349106,37.0613,131.26,131.25,115.29409654]
[1743168349414,29.44,131.26,131.25,115.29409654]
[1743168350010,15.41901934,131.29,131.25,115.29409654]
[1743168350011,44.85901934,131.29,131.25,115.29409654]
[1743168350310,44.85901934,131.29,131.24,0.05364841]
[1743168350311,7.6205,131.28,131.24,0.05364841]
[1743168350501,29.48922664,131.29,131.24,0.05364841]
[1743168350703,0.04922664,131.29,131.24,15.42344111]
[1743168351613,0.04922664,131.29,131.26,7.621]
[1743168352003,7.66892664,131.29,131.26,7.621]
[1743168352212,0.04922664,131.29,131.26,7.621]
[1743168352408,0.04922664,131.29,131.27,7.6206]
[1743168352816,0.04922664,131.29,131.27,7.67036726]
[1743168353111,0.04922664,131.29,131.27,0.04976726]
[1743168353711,7.66892664,131.29,131.27,0.04976726]
[1743168353911,0.04922664,131.29,131.27,7.67026726]
[1743168354118,0.04922664,131.29,131.27,0.04976726]
[1743168355119,0.04922664,131.29,131.27,7.67006726]